fUST/lending_fUST_20250101
["ID","MTS","AMOUNT","RATE_DAILY","PERIOD"]
[347308294,1735678248883,-169.592575,0.0002,2]
[347308295,1735678248892,-169.592575,0.0002,2]
[347308296,1735678248901,-169.592575,0.0002,2]
[347308297,1735678248911,-169.592575,0.0002,2]
[347308298,1735678248920,-169.592575,0.0002,2]
[347308299,1735678248929,-169.592575,0.0002,2]
[347308300,1735678248938,-169.592575,0.0002,2]
[347308301,1735678248947,-8527.29,0.0002,3]
[347308302,1735678248957,-603.55,0.0002,3]
[347308303,1735678248967,-500.0,0.0002,3]
[347308304,1735678248976,-500.0,0.0002,3]
[347308305,1735678248985,-500.0,0.0002,3]
[347308306,1735678248994,-500.0,0.0002,3]
[347308307,1735678249003,-500.0,0.0002,3]
[347308308,1735678249013,-500.0,0.0002,3]
[347308309,1735678249022,-500.0,0.0002,3]
[347308310,1735678249031,-906.38,0.0002,3]
[347308311,1735678249039,-1482.09,0.0002,3]
[347308312,1735678249049,-1317.71,0.0002,3]
[347308313,1735678249057,-500.0,0.0002,3]
[347308314,1735678249067,-750.06,0.0002,3]
[347308315,1735678249076,-275.501114,0.0002,2]
[347308316,1735678249085,-275.501114,0.0002,2]
[347308317,1735678249094,-275.501114,0.0002,2]
[347308318,1735678249103,-275.501114,0.0002,2]
[347308319,1735678249112,-500.0,0.0002,3]
[347308320,1735678249121,-597.87,0.0002,3]
[347308321,1735678249131,-1068.79,0.0002,3]
[347308322,1735678249139,-500.0,0.0002,3]
[347308323,1735678249148,-500.0,0.0002,3]
[347308324,1735678249157,-500.0,0.0002,3]
[347308325,1735678249167,-320.523425,0.0002,2]
[347308326,1735678249176,-320.523425,0.0002,2]
[347308327,1735678249184,-500.0,0.0002,3]
[347308328,1735678249193,-320.523425,0.0002,2]
[347308329,1735678249202,-320.523425,0.0002,2]
[347308330,1735678249211,-320.523425,0.0002,2]
[347308331,1735678249220,-320.52343,0.0002,2]
[347308332,1735678249230,-1061.03,0.0002,3]
[347308333,1735678249242,-713.17,0.0002,3]
[347308334,1735678249251,-723.8,0.0002,3]
[347308335,1735678249261,-500.0,0.0002,3]
[347308336,1735678249270,-735.12,0.0002,3]
[347308337,1735678249280,-500.0,0.0002,3]
[347308338,1735678249288,-323.214034,0.0002,2]
[347308339,1735678249298,-323.214034,0.0002,2]
[347308340,1735678249307,-500.0,0.0002,3]
[347308341,1735678249316,-323.214034,0.0002,2]
[347308342,1735678249326,-323.214034,0.0002,2]
[347308343,1735678249335,-150.18,0.0002,3]
[347308344,1735678249344,-150.18,0.0002,3]
[347308345,1735678249353,-500.0,0.0002,3]
[347308346,1735678249363,-687.313315,0.0002,2]
[347308347,1735678249372,-150.28791376,0.0002,3]
[347308348,1735678249382,-687.313315,0.0002,2]
[347308349,1735678249391,-687.313315,0.0002,2]
[347308350,1735678249401,-687.313315,0.0002,2]
[347308351,1735678249411,-687.313315,0.0002,2]
[347308352,1735678249420,-687.313316,0.0002,2]
[347308353,1735678249430,-500.0,0.0002,3]
[347308354,1735678249439,-500.0,0.0002,3]
[347308355,1735678249448,-500.0,0.0002,3]
[347308356,1735678249459,-609.1,0.0002,3]
[347308357,1735678249558,-500.0,0.0002,3]
[347308358,1735678249568,-500.0,0.0002,3]
[347308359,1735678249577,-1419.68,0.0002,3]
[347308360,1735678249587,-799.98,0.0002,3]
[347308361,1735678249596,-500.0,0.0002,3]
[347308362,1735678249605,-2901.12,0.0002,3]
[347308363,1735678249614,-709.03,0.0002,3]
[347308364,1735678249624,-500.0,0.0002,3]
[347308365,1735678249633,-500.0,0.0002,3]
[347308366,1735678249642,-731.78,0.0002,3]
[347308367,1735678249651,-500.0,0.0002,3]
[347308368,1735678249660,-500.0,0.0002,3]
[347308369,1735678249669,-861.64,0.0002,3]
[347308370,1735678249679,-500.0,0.0002,3]
[347308371,1735678249688,-751.77,0.0002,3]
[347308372,1735678249698,-500.0,0.0002,3]
[347308373,1735678249707,-150.18,0.0002,3]
[347308374,1735678249716,-203.43496703,0.0002,3]
[347308375,1735678249725,-159.4091673,0.0002,3]
[347308376,1735678249735,-500.0,0.0002,2]
[347308377,1735678249744,-500.0,0.0002,3]
[347308378,1735678249753,-150.21,0.0002,3]
[347308379,1735678249762,-1420.74,0.0002,3]
[347308380,1735678249772,-754.45,0.0002,3]
[347308381,1735678249781,-623.88,0.0002,3]
[347308382,1735678249791,-1726.52,0.0002,3]
[347308383,1735678249800,-500.0,0.0002,3]
[347308384,1735678249808,-500.0,0.0002,3]
[347308385,1735678249818,-1078.31,0.0002,3]
[347308386,1735678249828,-281.59599461,0.0002,3]
[347308387,1735678249837,-1826.49,0.0002,3]
[347308388,1735678249846,-961.81,0.0002,3]
[347308389,1735678249855,-500.0,0.0002,3]
[347308390,1735678249864,-1477.71,0.0002,3]
[347308391,1735678249874,-756.61,0.0002,3]
[347308392,1735678249883,-500.0,0.0002,3]
[347308393,1735678249893,-500.0,0.0002,3]
[347308394,1735678249902,-915.66,0.0002,3]
[347308395,1735678249911,-500.0,0.0002,3]
[347308396,1735678249920,-325.951123,0.0002,2]
[347308397,1735678249928,-325.951123,0.0002,2]
[347308398,1735678249938,-500.0,0.0002,3]
[347308399,1735678249947,-325.951123,0.0002,2]
[347308400,1735678249956,-500.0,0.0002,3]
[347308401,1735678249965,-1016.18,0.0002,3]
[347308402,1735678249974,-325.951123,0.0002,2]
[347308403,1735678249984,-325.951123,0.0002,2]
[347308404,1735678249993,-325.951123,0.0002,2]
[347308405,1735678250002,-557.74,0.0002,3]
[347308406,1735678250011,-500.0,0.0002,3]
[347308407,1735678250021,-1182.84,0.0002,3]
[347308408,1735678250030,-5516.38,0.0002,3]
[347308409,1735678250039,-885.37,0.0002,3]
[347308410,1735678250048,-2423.86,0.0002,3]
[347308411,1735678250057,-500.0,0.0002,3]
[347308412,1735678250067,-500.0,0.0002,3]
[347308413,1735678250076,-500.0,0.0002,3]
[347308414,1735678250086,-689.76,0.0002,3]
[347308415,1735678250095,-500.0,0.0002,3]
[347308416,1735678250104,-1014.13,0.0002,3]
[347308417,1735678250114,-956.62,0.0002,3]
[347308418,1735678250124,-503.42,0.0002,3]
[347308419,1735678250133,-150.21,0.0002,3]
[347308420,1735678250142,-340.834427,0.0002,2]
[347308421,1735678250151,-340.834427,0.0002,2]
[347308422,1735678250160,-150.18,0.0002,3]
[347308423,1735678250169,-500.0,0.0002,3]
[347308424,1735678250178,-340.834427,0.0002,2]
[347308425,1735678250188,-340.834428,0.0002,2]
[347308426,1735678250197,-150.18,0.0002,3]
[347308427,1735678250206,-500.0,0.0002,3]
[347308428,1735678250215,-150.18,0.0002,2]
[347308429,1735678250224,-845.91,0.0002,3]
[347308430,1735678250238,-150.21,0.0002,3]
[347308431,1735678250252,-39769.65,0.0002,3]
[347308432,1735678250261,-500.0,0.0002,3]
[347308433,1735678250270,-500.0,0.0002,3]
[347308434,1735678250279,-445.69950457,0.0002,3]
[347308435,1735678250288,-500.0,0.0002,3]
[347308436,1735678250298,-150.18,0.0002,2]
[347308437,1735678250307,-500.0,0.0002,3]
[347308438,1735678250316,-150.24,0.0002,3]
[347308439,1735678250325,-500.0,0.0002,3]
[347308440,1735678250334,-1237.87,0.0002,3]
[347308441,1735678250343,-596.25,0.0002,3]
[347308442,1735678250352,-8730.31,0.0002,3]
[347308443,1735678250361,-500.0,0.0002,3]
[347308444,1735678250370,-1324.32,0.0002,3]
[347308445,1735678250379,-565.9,0.0002,3]
[347308446,1735678250389,-1582.67,0.0002,3]
[347308447,1735678250398,-624.44,0.0002,3]
[347308448,1735678250407,-791.96,0.0002,3]
[347308449,1735678250416,-920.06,0.0002,3]
[347308450,1735678250425,-235.70407286,0.0002,3]
[347308451,1735678250435,-4235.09,0.0002,3]
[347308452,1735678250443,-500.0,0.0002,3]
[347308453,1735678250452,-826.6,0.0002,3]
[347308454,1735678250463,-561.1,0.0002,3]
[347308455,1735678250472,-931.37,0.0002,3]
[347308456,1735678250481,-500.0,0.0002,3]
[347308457,1735678250491,-730.16,0.0002,3]
[347308458,1735678250500,-500.0,0.0002,3]
[347308459,1735678250509,-833.34,0.0002,3]
[347308460,1735678250518,-3286.87,0.0002,3]
[347308461,1735678250526,-2057.98,0.0002,3]
[347308462,1735678250536,-2074.92,0.0002,3]
[347308463,1735678250545,-614.34,0.0002,3]
[347308464,1735678250555,-500.0,0.0002,3]
[347308465,1735678250564,-570.70236481,0.0002,3]
[347308466,1735678250573,-500.0,0.0002,3]
[347308467,1735678250582,-500.0,0.0002,3]
[347308468,1735678250592,-500.0,0.0002,3]
[347308469,1735678250601,-1547.95,0.0002,3]
[347308470,1735678250611,-681.59,0.0002,3]
[347308471,1735678250619,-495.488641,0.0002,2]
[347308472,1735678250628,-495.488641,0.0002,2]
[347308473,1735678250637,-275.501114,0.00020021,2]
[347308474,1735678250646,-275.50112,0.00020021,2]
[347308475,1735678250655,-323.214034,0.00020021,2]
[347308476,1735678250664,-323.214026,0.00020021,2]
[347308477,1735678250673,-150.0,0.00020021,2]
[347308478,1735678250682,-534.0,0.00020021,2]
[347308479,1735678250691,-2093.0,0.00020021,2]
[347308480,1735678250700,-2348.0,0.00020021,2]
[347308481,1735678250709,-151.0,0.000201,4]
[347308482,1735678250718,-5000.0,0.00020111,2]
[347308483,1735678250727,-314.86616198,0.00020138,2]
[347308484,1735678250736,-427.87814357,0.00020173,2]
[347308485,1735678250745,-1000.0,0.000202,2]
[347308486,1735678250754,-156.61,0.00020271,2]
[347308487,1735678250763,-156.0,0.00020271,2]
[347308488,1735678250772,-156.0,0.00020271,2]
[347308489,1735678250781,-156.0,0.00020271,2]
[347308490,1735678250790,-156.0,0.00020271,2]
[347308491,1735678250799,-156.0,0.00020271,2]
[347308492,1735678250809,-156.0,0.00020271,2]
[347308493,1735678250818,-156.0,0.00020271,2]
[347308494,1735678250827,-156.0,0.00020271,2]
[347308495,1735678250836,-156.0,0.00020271,2]
[347308496,1735678250845,-156.0,0.00020271,2]
[347308497,1735678250854,-156.97,0.00020271,2]
[347308498,1735678250863,-151.0,0.00020273,2]
[347308499,1735678250872,-151.0,0.00020273,2]
[347308500,1735678250881,-151.0,0.00020273,2]
[347308501,1735678250890,-151.0,0.00020273,2]
[347308502,1735678250898,-151.0,0.00020273,2]
[347308503,1735678250907,-151.0,0.00020273,2]
[347308504,1735678250917,-151.0,0.00020273,2]
[347308505,1735678250926,-151.0,0.00020273,2]
[347308506,1735678250935,-151.0,0.00020273,2]
[347308507,1735678250944,-347.868796,0.00020273,2]
[347308508,1735678250952,-347.868796,0.00020273,2]
[347308509,1735678250962,-347.868796,0.00020273,2]
[347308510,1735678250972,-347.868796,0.00020273,2]
[347308511,1735678250982,-347.868796,0.00020273,2]
[347308512,1735678250990,-347.868796,0.00020273,2]
[347308513,1735678251000,-500.0,0.00020273,3]
[347308514,1735678251010,-155.922169,0.00020273,2]
[347308515,1735678251019,-155.922169,0.00020273,2]
[347308516,1735678251028,-155.922169,0.00020273,2]
[347308517,1735678251037,-155.922169,0.00020273,2]
[347308518,1735678251046,-155.922169,0.00020273,2]
[347308519,1735678251055,-155.922169,0.00020273,2]
[347308520,1735678251064,-6249.95,0.00020273,3]
[347308521,1735678251073,-500.0,0.00020273,3]
[347308522,1735678251082,-193.183239,0.00020273,2]
[347308523,1735678251091,-193.183239,0.00020273,2]
[347308524,1735678251100,-193.183239,0.00020273,2]
[347308525,1735678251110,-193.183239,0.00020273,2]
[347308526,1735678251119,-193.183239,0.00020273,2]
[347308527,1735678251128,-193.183239,0.00020273,2]
[347308528,1735678251137,-500.0,0.00020273,3]
[347308529,1735678251146,-176.485778,0.00020273,2]
[347308530,1735678251155,-176.485778,0.00020273,2]
[347308531,1735678251164,-176.485778,0.00020273,2]
[347308532,1735678251174,-571.77,0.00020273,3]
[347308533,1735678251183,-176.485778,0.00020273,2]
[347308534,1735678251192,-176.485778,0.00020273,2]
[347308535,1735678251201,-176.485778,0.00020273,2]
[347308536,1735678251210,-500.0,0.00020273,3]
[347308537,1735678251219,-151.0,0.00020273,2]
[347308538,1735678251313,-151.0,0.00020273,2]
[347308539,1735678251323,-151.0,0.00020273,2]
[347308540,1735678251332,-2896.96,0.00020273,3]
[347308541,1735678251342,-500.0,0.00020273,3]
[347308542,1735678251351,-500.0,0.00020273,3]
[347308543,1735678251359,-164.730858,0.00020273,2]
[347308544,1735678251370,-164.730858,0.00020273,2]
[347308545,1735678251380,-164.730858,0.00020273,2]
[347308546,1735678251389,-500.0,0.00020273,3]
[347308547,1735678251399,-500.0,0.00020273,3]
[347308548,1735678251408,-688.46,0.00020273,3]
[347308549,1735678251417,-1078.54,0.00020273,3]
[347308550,1735678251427,-850.23,0.00020273,3]
[347308551,1735678251436,-530.74,0.00020273,3]
[347308552,1735678251447,-500.0,0.00020273,3]
[347308553,1735678251457,-500.0,0.00020273,3]
[347308554,1735678251466,-500.0,0.00020273,3]
[347308555,1735678251476,-757.79,0.00020273,3]
[347308556,1735678251485,-500.0,0.00020273,3]
[347308557,1735678251494,-595.35,0.00020273,3]
[347308558,1735678251503,-544.41,0.00020273,3]
[347308559,1735678251512,-500.0,0.00020273,3]
[347308560,1735678251522,-4774.75,0.00020273,3]
[347308561,1735678251533,-500.0,0.00020273,3]
[347308562,1735678251543,-500.0,0.00020273,2]
[347308563,1735678251552,-600.4,0.00020273,3]
[347308564,1735678251562,-500.0,0.00020273,3]
[347308565,1735678251571,-164.413289,0.00020273,2]
[347308566,1735678251581,-500.0,0.00020273,3]
[347308567,1735678251591,-169.592575,0.00020273,2]
[347308568,1735678251601,-169.59258,0.00020273,2]
[347308569,1735678251618,-8527.29,0.00020273,3]
[347308570,1735678251627,-603.55,0.00020273,3]
[347308571,1735678251636,-500.0,0.00020273,3]
[347308572,1735678251645,-500.0,0.00020273,3]
[347308573,1735678251654,-500.0,0.00020273,3]
[347308574,1735678251664,-500.0,0.00020273,3]
[347308575,1735678251673,-500.0,0.00020273,3]
[347308576,1735678251682,-500.0,0.00020273,3]
[347308577,1735678251692,-906.38,0.00020273,3]
[347308578,1735678251701,-1482.09,0.00020273,3]
[347308579,1735678251711,-1317.71,0.00020273,3]
[347308580,1735678251719,-500.0,0.00020273,3]
[347308581,1735678251730,-750.06,0.00020273,3]
[347308582,1735678251739,-500.0,0.00020273,3]
[347308583,1735678251748,-597.87,0.00020273,3]
[347308584,1735678251757,-1068.79,0.00020273,3]
[347308585,1735678251767,-500.0,0.00020273,3]
[347308586,1735678251776,-500.0,0.00020273,3]
[347308587,1735678251785,-500.0,0.00020273,3]
[347308588,1735678251794,-500.0,0.00020273,3]
[347308589,1735678251803,-1061.03,0.00020273,3]
[347308590,1735678251812,-723.8,0.00020273,3]
[347308591,1735678251821,-713.17,0.00020273,3]
[347308592,1735678251831,-500.0,0.00020273,3]
[347308593,1735678251840,-735.12,0.00020273,3]
[347308594,1735678251849,-500.0,0.00020273,3]
[347308595,1735678251859,-500.0,0.00020273,3]
[347308596,1735678251869,-500.0,0.00020273,3]
[347308597,1735678251878,-500.0,0.00020273,3]
[347308598,1735678251887,-500.0,0.00020273,3]
[347308599,1735678251896,-500.0,0.00020273,3]
[347308600,1735678251905,-609.1,0.00020273,3]
[347308601,1735678251914,-500.0,0.00020273,3]
[347308602,1735678251923,-500.0,0.00020273,3]
[347308603,1735678251932,-1419.68,0.00020273,3]
[347308604,1735678251941,-799.98,0.00020273,3]
[347308605,1735678251950,-500.0,0.00020273,3]
[347308606,1735678251959,-2901.12,0.00020273,3]
[347308607,1735678251968,-709.03,0.00020273,3]
[347308608,1735678251977,-500.0,0.00020273,3]
[347308609,1735678251986,-731.78,0.00020273,3]
[347308610,1735678251995,-500.0,0.00020273,3]
[347308611,1735678252004,-245.96079676,0.00020273,3]
[347308612,1735678252013,-861.64,0.00020273,3]
[347308613,1735678252022,-500.0,0.00020273,3]
[347308614,1735678252031,-751.77,0.00020273,3]
[347308615,1735678252040,-500.0,0.00020273,3]
[347308616,1735678252049,-500.0,0.00020273,3]
[347308617,1735678252058,-1420.74,0.00020273,3]
[347308618,1735678252068,-754.45,0.00020273,3]
[347308619,1735678252077,-623.88,0.00020273,3]
[347308620,1735678252086,-1726.52,0.00020273,3]
[347308621,1735678252095,-500.0,0.00020273,3]
[347308622,1735678252105,-500.0,0.00020273,3]
[347308623,1735678252114,-1078.31,0.00020273,3]
[347308624,1735678252123,-1826.49,0.00020273,3]
[347308625,1735678252132,-961.81,0.00020273,3]
[347308626,1735678252141,-561.23557064,0.00020273,3]
[347308627,1735678252150,-1477.71,0.00020273,3]
[347308628,1735678252159,-756.61,0.00020273,3]
[347308629,1735678252168,-500.0,0.00020273,3]
[347308630,1735678252177,-915.66,0.00020273,3]
[347308631,1735678252186,-500.0,0.00020273,3]
[347308632,1735678252195,-500.0,0.00020273,3]
[347308633,1735678252204,-325.951123,0.00020273,2]
[347308634,1735678252213,-500.0,0.00020273,3]
[347308635,1735678252222,-325.951128,0.00020273,2]
[347308636,1735678252234,-557.74,0.00020273,3]
[347308637,1735678252244,-1182.84,0.00020273,3]
[347308638,1735678252253,-5516.38,0.00020273,3]
[347308639,1735678252262,-885.37,0.00020273,3]
[347308640,1735678252271,-1016.18,0.00020273,3]
[347308641,1735678252281,-2423.86,0.00020273,3]
[347308642,1735678252290,-500.0,0.00020273,3]
[347308643,1735678252299,-503.84527599,0.00020273,3]
[347308644,1735678252311,-689.76,0.00020273,3]
[347308645,1735678252322,-500.0,0.00020273,3]
[347308646,1735678252330,-500.0,0.00020273,3]
[347308647,1735678252339,-1014.13,0.00020273,3]
[347308648,1735678252348,-956.62,0.00020273,3]
[347308649,1735678252358,-503.42,0.00020273,3]
[347308650,1735678252366,-500.0,0.00020273,3]
[347308651,1735678252375,-845.91,0.00020273,3]
[347308652,1735678252384,-39769.65,0.00020273,3]
[347308653,1735678252394,-500.0,0.00020273,3]
[347308654,1735678252403,-500.0,0.00020273,3]
[347308655,1735678252411,-500.0,0.00020273,3]
[347308656,1735678252420,-1237.87,0.00020273,3]
[347308657,1735678252429,-596.25,0.00020273,3]
[347308658,1735678252438,-8730.31,0.00020273,3]
[347308659,1735678252447,-500.0,0.00020273,3]
[347308660,1735678252456,-1324.32,0.00020273,3]
[347308661,1735678252467,-565.9,0.00020273,3]
[347308662,1735678252477,-1582.67,0.00020273,3]
[347308663,1735678252485,-624.44,0.00020273,3]
[347308664,1735678252494,-791.96,0.00020273,3]
[347308665,1735678252503,-920.06,0.00020273,3]
[347308666,1735678252513,-4235.09,0.00020273,3]
[347308667,1735678252522,-500.0,0.00020273,3]
[347308668,1735678252531,-499.0,0.00020273,2]
[347308669,1735678252541,-826.6,0.00020273,3]
[347308670,1735678252550,-561.1,0.00020273,3]
[347308671,1735678252559,-931.37,0.00020273,3]
[347308672,1735678252569,-500.0,0.00020273,3]
[347308673,1735678252578,-730.16,0.00020273,3]
[347308674,1735678252588,-500.0,0.00020273,3]
[347308675,1735678252597,-833.34,0.00020273,3]
[347308676,1735678252606,-3286.87,0.00020273,3]
[347308677,1735678252615,-2057.98,0.00020273,3]
[347308678,1735678252624,-2074.92,0.00020273,3]
[347308679,1735678252632,-614.34,0.00020273,3]
[347308680,1735678252642,-257.34379423,0.00020273,3]
[347308681,1735678252651,-545.23847779,0.00020273,3]
[347308682,1735678252661,-500.0,0.00020273,3]
[347308683,1735678252670,-1547.95,0.00020273,3]
[347308684,1735678252680,-681.59,0.00020273,3]
[347308685,1735678252689,-150.18,0.00020274,3]
[347308686,1735678252698,-150.18,0.00020274,3]
[347308687,1735678252708,-150.18,0.00020274,3]
[347308688,1735678252720,-600.92,0.00020274,2]
[347308689,1735678252730,-150.18,0.00020274,3]
[347308690,1735678252741,-750.12575115,0.00020274,3]
[347308691,1735678252750,-150.18,0.00020274,3]
[347308692,1735678252759,-500.0,0.00020274,3]
[347308693,1735678252768,-500.0,0.00020274,3]
[347308694,1735678252777,-2221.15,0.000203,2]
[347308695,1735678252787,-151.0,0.000203,3]
[347308696,1735678252796,-151.0,0.000203,3]
[347308697,1735678252805,-157.0,0.00020313,2]
[347308698,1735678252814,-157.0,0.00020313,2]
[347308699,1735678252824,-314.86616198,0.00020315,2]
[347308700,1735678252834,-157.0,0.00020339,2]
[347308701,1735678252844,-157.0,0.00020339,2]
[347308702,1735678252853,-157.0,0.00020339,2]
[347308703,1735678252863,-157.0,0.00020339,2]
[347308704,1735678252873,-157.0,0.00020339,2]
[347308705,1735678252964,-157.0,0.00020339,2]
[347308706,1735678252974,-160.69,0.00020339,2]
[347308707,1735678252983,-151.0,0.000204,4]
[347308708,1735678252993,-151.0,0.000204,4]
[347308709,1735678253002,-205.18104735,0.00020445,2]
[347308710,1735678253011,-4190.03993336,0.00020447,2]
[347308711,1735678253020,-400.0,0.00020447,2]
[347308712,1735678253030,-314.86616198,0.00020492,2]
[347308713,1735678253039,-151.0,0.000205,3]
[347308714,1735678253048,-342.263001,0.000205,9]
[347308715,1735678253058,-276.99246,0.00020521,2]
[347308716,1735678253067,-151.0,0.00020547,2]
[347308717,1735678253076,-151.0,0.00020547,2]
[347308718,1735678253086,-151.0,0.00020547,2]
[347308719,1735678253095,-151.0,0.00020547,2]
[347308720,1735678253105,-189.876263,0.00020547,2]
[347308721,1735678253114,-186.274761,0.00020547,2]
[347308722,1735678253123,-347.868796,0.00020547,2]
[347308723,1735678253133,-347.868796,0.00020547,2]
[347308724,1735678253142,-347.868796,0.00020547,2]
[347308725,1735678253151,-347.868796,0.00020547,2]
[347308726,1735678253160,-347.868796,0.00020547,2]
[347308727,1735678253169,-347.868796,0.00020547,2]
[347308728,1735678253178,-500.0,0.00020547,3]
[347308729,1735678253187,-155.922169,0.00020547,2]
[347308730,1735678253196,-155.922164,0.00020547,2]
[347308731,1735678253206,-6249.95,0.00020547,3]
[347308732,1735678253216,-500.0,0.00020547,3]
[347308733,1735678253225,-193.183239,0.00020547,2]
[347308734,1735678253237,-193.183239,0.00020547,2]
[347308735,1735678253247,-193.183239,0.00020547,2]
[347308736,1735678253256,-193.183239,0.00020547,2]
[347308737,1735678253266,-500.0,0.00020547,3]
[347308738,1735678253278,-176.485778,0.00020547,2]
[347308739,1735678253287,-571.77,0.00020547,3]
[347308740,1735678253297,-176.485784,0.00020547,2]
[347308741,1735678253307,-500.0,0.00020547,3]
[347308742,1735678253317,-151.0,0.00020547,2]
[347308743,1735678253328,-2896.96,0.00020547,3]
[347308744,1735678253337,-500.0,0.00020547,3]
[347308745,1735678253347,-500.0,0.00020547,3]
[347308746,1735678253358,-164.730858,0.00020547,2]
[347308747,1735678253367,-164.730851,0.00020547,2]
[347308748,1735678253377,-500.0,0.00020547,3]
[347308749,1735678253386,-500.0,0.00020547,3]
[347308750,1735678253396,-688.46,0.00020547,3]
[347308751,1735678253407,-1078.54,0.00020547,3]
[347308752,1735678253416,-850.23,0.00020547,3]
[347308753,1735678253427,-530.74,0.00020547,3]
[347308754,1735678253438,-500.0,0.00020547,3]
[347308755,1735678253448,-500.0,0.00020547,3]
[347308756,1735678253459,-500.0,0.00020547,3]
[347308757,1735678253470,-757.79,0.00020547,3]
[347308758,1735678253482,-500.0,0.00020547,3]
[347308759,1735678253493,-595.35,0.00020547,3]
[347308760,1735678253503,-544.41,0.00020547,3]
[347308761,1735678253512,-315.87050643,0.00020547,3]
[347308762,1735678253521,-4774.75,0.00020547,3]
[347308763,1735678253529,-500.0,0.00020547,3]
[347308764,1735678253538,-500.0,0.00020547,2]
[347308765,1735678253548,-600.4,0.00020547,3]
[347308766,1735678253557,-500.0,0.00020547,3]
[347308767,1735678253566,-500.0,0.00020547,3]
[347308768,1735678253575,-8527.29,0.00020547,3]
[347308769,1735678253584,-603.55,0.00020547,3]
[347308770,1735678253594,-500.0,0.00020547,3]
[347308771,1735678253603,-500.0,0.00020547,3]
[347308772,1735678253611,-500.0,0.00020547,3]
[347308773,1735678253621,-500.0,0.00020547,3]
[347308774,1735678253629,-500.0,0.00020547,3]
[347308775,1735678253638,-500.0,0.00020547,3]
[347308776,1735678253647,-906.38,0.00020547,3]
[347308777,1735678253657,-1482.09,0.00020547,3]
[347308778,1735678253666,-1317.71,0.00020547,3]
[347308779,1735678253675,-500.0,0.00020547,3]
[347308780,1735678253685,-750.06,0.00020547,3]
[347308781,1735678253694,-500.0,0.00020547,3]
[347308782,1735678253703,-597.87,0.00020547,3]
[347308783,1735678253721,-1068.79,0.00020547,3]
[347308784,1735678253740,-303.69,0.00020547,3]
[347308785,1735678253753,-500.0,0.00020547,3]
[347308786,1735678253769,-500.0,0.00020547,3]
[347308787,1735678253786,-500.0,0.00020547,3]
[347308788,1735678253802,-1061.03,0.00020547,3]
[347308789,1735678253820,-723.8,0.00020547,3]
[347308790,1735678253835,-713.17,0.00020547,3]
[347308791,1735678253850,-500.0,0.00020547,3]
[347308792,1735678253865,-735.12,0.00020547,3]
[347308793,1735678253878,-500.0,0.00020547,3]